[Event "Titled Tuesday Blitz March 01 Late 2022"]
[White "Romero Ruscalleda, Josep"]
[Black "Dong, Bao Nghia"]
[WhiteFideId "2231859"]
[BlackFideId "12400343"]
[WhiteElo "2301"]
[BlackElo "2360"]
[Result "1-0"]
[Round "01"]
[TimeControl "180+1"]
[Date "2022.03.02"]
[WhiteClock "0:00:44"]
[BlackClock "0:01:17"]

1. e4 {[%clk 0:03:00]}  e6 {[%clk 0:02:59]} 2. d4 {[%clk 0:03:00]}  d5 {[%clk 0:03:00]} 3. e5 {[%clk 0:03:00]}  c5 {[%clk 0:03:01]} 4. c3 {[%clk 0:03:01]}  Ne7 {[%clk 0:03:01]} 5. Be3 {[%clk 0:03:00]}  Nec6 {[%clk 0:03:02]} 6. Nf3 {[%clk 0:02:58]}  Qb6 {[%clk 0:03:03]} 7. Qd2 {[%clk 0:02:58]}  Nd7 {[%clk 0:03:02]} 8. Bd3 {[%clk 0:02:56]}  cxd4 {[%clk 0:03:01]} 9. cxd4 {[%clk 0:02:56]}  Nb4 {[%clk 0:02:59]} 10. Be2 {[%clk 0:02:55]}  Be7 {[%clk 0:02:54]} 11. O-O {[%clk 0:02:53]}  O-O {[%clk 0:02:53]} 12. Nc3 {[%clk 0:02:51]}  f5 {[%clk 0:02:51]} 13. exf6 {[%clk 0:02:48]}  Nxf6 {[%clk 0:02:51]} 14. Ne5 {[%clk 0:02:47]}  Nc6 {[%clk 0:02:50]} 15. Na4 {[%clk 0:02:40]}  Qb4 {[%clk 0:02:47]} 16. Nxc6 {[%clk 0:02:37]}  bxc6 {[%clk 0:02:46]} 17. Qxb4 {[%clk 0:02:30]}  Bxb4 {[%clk 0:02:46]} 18. Rac1 {[%clk 0:02:30]}  Bd7 {[%clk 0:02:45]} 19. Nc5 {[%clk 0:02:30]}  Bxc5 {[%clk 0:02:45]} 20. Rxc5 {[%clk 0:02:29]}  Rab8 {[%clk 0:02:45]} 21. b3 {[%clk 0:02:28]}  Be8 {[%clk 0:02:40]} 22. Rfc1 {[%clk 0:02:27]}  Rb6 {[%clk 0:02:35]} 23. f3 {[%clk 0:02:25]}  Bd7 {[%clk 0:02:30]} 24. Bd2 {[%clk 0:02:19]}  Re8 {[%clk 0:02:22]} 25. Ba5 {[%clk 0:02:18]}  Rbb8 {[%clk 0:02:22]} 26. Bd3 {[%clk 0:02:11]}  g6 {[%clk 0:02:04]} 27. Bc7 {[%clk 0:02:05]}  Rb7 {[%clk 0:02:05]} 28. Be5 {[%clk 0:02:05]}  Kf7 {[%clk 0:02:05]} 29. Ba6 {[%clk 0:02:02]}  Rb6 {[%clk 0:02:05]} 30. Ra5 {[%clk 0:02:00]}  Rb4 {[%clk 0:01:52]} 31. Bd3 {[%clk 0:01:54]}  Rb7 {[%clk 0:01:51]} 32. Ra6 {[%clk 0:01:49]}  Rc8 {[%clk 0:01:50]} 33. Rc5 {[%clk 0:01:48]}  Be8 {[%clk 0:01:49]} 34. Rca5 {[%clk 0:01:44]}  Ra8 {[%clk 0:01:48]} 35. Kf2 {[%clk 0:01:42]}  Nd7 {[%clk 0:01:47]} 36. Bd6 {[%clk 0:01:35]}  Nb6 {[%clk 0:01:35]} 37. Bc5 {[%clk 0:01:30]}  Nc8 {[%clk 0:01:34]} 38. Ra4 {[%clk 0:01:23]}  Kf6 {[%clk 0:01:34]} 39. R6a5 {[%clk 0:01:22]}  Rf7 {[%clk 0:01:31]} 40. Ba6 {[%clk 0:01:18]}  e5 {[%clk 0:01:28]} 41. Bxc8 {[%clk 0:01:15]}  Rxc8 {[%clk 0:01:29]} 42. Rxa7 {[%clk 0:01:16]}  exd4 {[%clk 0:01:28]} 43. Bxd4+ {[%clk 0:01:15]}  Ke6 {[%clk 0:01:28]} 44. Bc5 {[%clk 0:01:13]}  Rxa7 {[%clk 0:01:26]} 45. Rxa7 {[%clk 0:01:12]}  Bd7 {[%clk 0:01:27]} 46. Ke3 {[%clk 0:01:11]}  Rb8 {[%clk 0:01:27]} 47. Kd4 {[%clk 0:01:10]}  h5 {[%clk 0:01:28]} 48. Rc7 {[%clk 0:01:05]}  g5 {[%clk 0:01:27]} 49. b4 {[%clk 0:00:59]}  Ra8 {[%clk 0:01:27]} 50. Ra7 {[%clk 0:00:58]}  Rxa7 {[%clk 0:01:27]} 51. Bxa7 {[%clk 0:00:58]}  Bc8 {[%clk 0:01:27]} 52. Kc5 {[%clk 0:00:56]}  Kd7 {[%clk 0:01:27]} 53. a4 {[%clk 0:00:54]}  Ba6 {[%clk 0:01:27]} 54. b5 {[%clk 0:00:55]}  cxb5 {[%clk 0:01:27]} 55. axb5 {[%clk 0:00:55]}  Bb7 {[%clk 0:01:28]} 56. Bb6 {[%clk 0:00:55]}  Ke6 {[%clk 0:01:28]} 57. Ba5 {[%clk 0:00:55]}  Kd7 {[%clk 0:01:28]} 58. Bc3 {[%clk 0:00:55]}  g4 {[%clk 0:01:26]} 59. fxg4 {[%clk 0:00:54]}  hxg4 {[%clk 0:01:26]} 60. h4 {[%clk 0:00:54]}  d4 {[%clk 0:01:25]} 61. Bxd4 {[%clk 0:00:53]}  Bxg2 {[%clk 0:01:26]} 62. Be5 {[%clk 0:00:53]}  Be4 {[%clk 0:01:22]} 63. h5 {[%clk 0:00:52]}  Kc8 {[%clk 0:01:23]} 64. h6 {[%clk 0:00:52]}  Kb7 {[%clk 0:01:21]} 65. b6 {[%clk 0:00:49]}  Bh7 {[%clk 0:01:21]} 66. Bc7 {[%clk 0:00:48]}  Bg8 {[%clk 0:01:17]} 67. Kd4 {[%clk 0:00:44]}  g3 {[%clk 0:01:17]} 68. Ke3 {[%clk 0:00:44]} 1-0


[Site "https://www.chess.com"]

[Event "Titled Tuesday Blitz March 01 Late 2022"]
[White "Rudzinska, Michalina"]
[Black "Mardov, Dimitar"]
[WhiteFideId "1172883"]
[BlackFideId "30919495"]
[WhiteElo "1904"]
[BlackElo "2185"]
[Result "0-1"]
[Round "01"]
[TimeControl "180+1"]
[Date "2022.03.02"]
[WhiteClock "0:00:22"]
[BlackClock "0:01:10"]

1. e4 {[%clk 0:02:59]}  e5 {[%clk 0:02:58]} 2. Nf3 {[%clk 0:02:58]}  Nf6 {[%clk 0:02:57]} 3. d4 {[%clk 0:02:57]}  exd4 {[%clk 0:02:55]} 4. e5 {[%clk 0:02:56]}  Nd5 {[%clk 0:02:55]} 5. Qxd4 {[%clk 0:02:52]}  Nb6 {[%clk 0:02:54]} 6. Nc3 {[%clk 0:02:50]}  Nc6 {[%clk 0:02:54]} 7. Qf4 {[%clk 0:02:50]}  d6 {[%clk 0:02:53]} 8. Be3 {[%clk 0:02:33]}  Be7 {[%clk 0:02:48]} 9. O-O-O {[%clk 0:02:30]}  O-O {[%clk 0:02:40]} 10. Bd3 {[%clk 0:02:28]}  dxe5 {[%clk 0:02:25]} 11. Nxe5 {[%clk 0:02:11]}  Bd6 {[%clk 0:02:24]} 12. Nxc6 {[%clk 0:01:50]}  bxc6 {[%clk 0:02:23]} 13. Qf3 {[%clk 0:01:45]}  Rb8 {[%clk 0:02:14]} 14. Ne4 {[%clk 0:01:35]}  Nd5 {[%clk 0:02:11]} 15. Ng5 {[%clk 0:01:34]}  h6 {[%clk 0:02:00]} 16. Ne4 {[%clk 0:01:08]}  Be5 {[%clk 0:01:48]} 17. c3 {[%clk 0:00:59]}  Be6 {[%clk 0:01:40]} 18. Bb1 {[%clk 0:00:49]}  Qc8 {[%clk 0:01:32]} 19. h3 {[%clk 0:00:46]}  Qb7 {[%clk 0:01:27]} 20. Qe2 {[%clk 0:00:40]}  Nxe3 {[%clk 0:01:25]} 21. fxe3 {[%clk 0:00:38]}  Qb6 {[%clk 0:01:21]} 22. Rhe1 {[%clk 0:00:31]}  Qa5 {[%clk 0:01:17]} 23. Qc2 {[%clk 0:00:30]}  f5 {[%clk 0:01:14]} 24. b4 {[%clk 0:00:23]}  Qa3+ {[%clk 0:01:11]} 25. Qb2 {[%clk 0:00:22]}  Qxb2+ {[%clk 0:01:10]} 26. Kxb2 {[%clk 0:00:23]}  fxe4 {[%clk 0:01:10]} 27. Bxe4 {[%clk 0:00:23]}  Rxb4+ {[%clk 0:01:11]} 28. Kc2 {[%clk 0:00:22]}  Rxe4 {[%clk 0:01:10]} 0-1


[Site "https://www.chess.com"]

[Event "Titled Tuesday Blitz March 01 Late 2022"]
[White "Sadhwani, Raunak"]
[Black "Suder, Jakub"]
[WhiteFideId "35093487"]
[BlackFideId "1195310"]
[WhiteElo "2616"]
[BlackElo "2058"]
[Result "1-0"]
[Round "01"]
[TimeControl "180+1"]
[Date "2022.03.01"]
[WhiteClock "0:00:56"]
[BlackClock "0:00:04"]

1. d4 {[%clk 0:03:00]}  d5 {[%clk 0:02:58]} 2. Nf3 {[%clk 0:03:01]}  e6 {[%clk 0:02:58]} 3. Bf4 {[%clk 0:03:01]}  Nf6 {[%clk 0:02:53]} 4. e3 {[%clk 0:03:02]}  c5 {[%clk 0:02:53]} 5. Nbd2 {[%clk 0:03:02]}  Be7 {[%clk 0:02:52]} 6. c3 {[%clk 0:03:00]}  Nc6 {[%clk 0:02:50]} 7. Bd3 {[%clk 0:03:00]}  Nh5 {[%clk 0:02:50]} 8. Be5 {[%clk 0:02:57]}  Nxe5 {[%clk 0:02:49]} 9. dxe5 {[%clk 0:02:58]}  g6 {[%clk 0:02:50]} 10. O-O {[%clk 0:02:48]}  O-O {[%clk 0:02:46]} 11. Qe2 {[%clk 0:02:48]}  b6 {[%clk 0:02:45]} 12. Rad1 {[%clk 0:02:46]}  Bb7 {[%clk 0:02:45]} 13. Rfe1 {[%clk 0:02:46]}  Qc7 {[%clk 0:02:42]} 14. Nf1 {[%clk 0:02:46]}  a6 {[%clk 0:02:37]} 15. Ng3 {[%clk 0:02:47]}  Ng7 {[%clk 0:02:37]} 16. e4 {[%clk 0:02:46]}  b5 {[%clk 0:02:35]} 17. h4 {[%clk 0:02:44]}  c4 {[%clk 0:02:26]} 18. Bb1 {[%clk 0:02:43]}  Rad8 {[%clk 0:02:21]} 19. h5 {[%clk 0:02:41]}  dxe4 {[%clk 0:02:20]} 20. Bxe4 {[%clk 0:02:40]}  Nf5 {[%clk 0:02:09]} 21. hxg6 {[%clk 0:02:21]}  hxg6 {[%clk 0:02:09]} 22. Nxf5 {[%clk 0:02:20]}  exf5 {[%clk 0:02:05]} 23. Bxb7 {[%clk 0:02:20]}  Qxb7 {[%clk 0:02:06]} 24. e6 {[%clk 0:02:21]}  Rxd1 {[%clk 0:01:40]} 25. exf7+ {[%clk 0:02:20]}  Rxf7 {[%clk 0:01:36]} 26. Rxd1 {[%clk 0:02:20]}  Bf6 {[%clk 0:01:30]} 27. Qe6 {[%clk 0:02:13]}  Kg7 {[%clk 0:01:27]} 28. Rd6 {[%clk 0:02:12]}  Qe7 {[%clk 0:01:12]} 29. Rxa6 {[%clk 0:01:58]}  Qxe6 {[%clk 0:01:10]} 30. Rxe6 {[%clk 0:01:59]}  Rd7 {[%clk 0:01:09]} 31. Rb6 {[%clk 0:01:31]}  Rd1+ {[%clk 0:01:03]} 32. Kh2 {[%clk 0:01:31]}  Rb1 {[%clk 0:01:03]} 33. Rxb5 {[%clk 0:01:24]}  Bxc3 {[%clk 0:01:02]} 34. b3 {[%clk 0:01:23]}  cxb3 {[%clk 0:00:49]} 35. Rxb3 {[%clk 0:01:24]}  Rc1 {[%clk 0:00:37]} 36. a4 {[%clk 0:01:22]}  Kf6 {[%clk 0:00:34]} 37. Rb6+ {[%clk 0:01:19]}  Kf7 {[%clk 0:00:28]} 38. Rc6 {[%clk 0:01:18]}  Bb2 {[%clk 0:00:14]} 39. Rxc1 {[%clk 0:01:11]}  Bxc1 {[%clk 0:00:15]} 40. a5 {[%clk 0:01:06]}  Bf4+ {[%clk 0:00:11]} 41. g3 {[%clk 0:01:03]}  Bc7 {[%clk 0:00:12]} 42. a6 {[%clk 0:01:03]}  Bb6 {[%clk 0:00:12]} 43. Kg2 {[%clk 0:00:58]}  Kf6 {[%clk 0:00:12]} 44. Nd2 {[%clk 0:00:56]}  Ke6 {[%clk 0:00:07]} 45. Nc4 {[%clk 0:00:56]}  Ba7 {[%clk 0:00:07]} 46. Na3 {[%clk 0:00:56]}  Kd7 {[%clk 0:00:03]} 47. Nb5 {[%clk 0:00:56]}  Bb6 {[%clk 0:00:04]} 48. a7 {[%clk 0:00:56]} 1-0


[Site "https://www.chess.com"]

[Event "Titled Tuesday Blitz March 01 Late 2022"]
[White "Sailer, Mike"]
[Black "Guz, Ari"]
[WhiteFideId "2012901"]
[BlackFideId "2825759"]
[WhiteElo "2109"]
[BlackElo "1913"]
[Result "0-1"]
[Round "01"]
[TimeControl "180+1"]
[Date "2022.03.02"]
[WhiteClock "0:00:01"]
[BlackClock "0:01:14"]

1. d4 {[%clk 0:02:58]}  Nf6 {[%clk 0:02:52]} 2. Nf3 {[%clk 0:02:54]}  b5 {[%clk 0:02:51]} 3. Bf4 {[%clk 0:02:52]}  Bb7 {[%clk 0:02:50]} 4. e3 {[%clk 0:02:53]}  a6 {[%clk 0:02:50]} 5. a4 {[%clk 0:02:49]}  b4 {[%clk 0:02:50]} 6. Nbd2 {[%clk 0:02:46]}  e6 {[%clk 0:02:50]} 7. Bd3 {[%clk 0:02:37]}  Be7 {[%clk 0:02:50]} 8. O-O {[%clk 0:02:34]}  O-O {[%clk 0:02:50]} 9. h3 {[%clk 0:02:31]}  c5 {[%clk 0:02:50]} 10. c3 {[%clk 0:02:29]}  a5 {[%clk 0:02:48]} 11. Re1 {[%clk 0:02:23]}  Na6 {[%clk 0:02:47]} 12. Qe2 {[%clk 0:02:10]}  Nc7 {[%clk 0:02:45]} 13. e4 {[%clk 0:02:04]}  d6 {[%clk 0:02:41]} 14. Rad1 {[%clk 0:01:47]}  Re8 {[%clk 0:02:38]} 15. e5 {[%clk 0:01:43]}  Nfd5 {[%clk 0:02:39]} 16. Bh2 {[%clk 0:01:37]}  bxc3 {[%clk 0:02:34]} 17. Nc4 {[%clk 0:01:25]}  dxe5 {[%clk 0:02:30]} 18. dxe5 {[%clk 0:01:22]}  cxb2 {[%clk 0:02:23]} 19. Qxb2 {[%clk 0:01:21]}  Bc6 {[%clk 0:02:20]} 20. Nd6 {[%clk 0:01:11]}  Bxd6 {[%clk 0:02:19]} 21. exd6 {[%clk 0:01:09]}  Na6 {[%clk 0:02:19]} 22. Ne5 {[%clk 0:01:00]}  Bxa4 {[%clk 0:02:16]} 23. Bxh7+ {[%clk 0:00:50]}  Kxh7 {[%clk 0:02:05]} 24. Nxf7 {[%clk 0:00:50]}  Qf6 {[%clk 0:02:05]} 25. Qb1+ {[%clk 0:00:34]}  Kg8 {[%clk 0:02:03]} 26. Ne5 {[%clk 0:00:27]}  Bxd1 {[%clk 0:02:01]} 27. Qxd1 {[%clk 0:00:28]}  Nab4 {[%clk 0:01:59]} 28. Qh5 {[%clk 0:00:22]}  Rf8 {[%clk 0:01:57]} 29. f3 {[%clk 0:00:19]}  Nf4 {[%clk 0:01:44]} 30. Qg4 {[%clk 0:00:15]}  Nfd3 {[%clk 0:01:41]} 31. Nxd3 {[%clk 0:00:12]}  Nxd3 {[%clk 0:01:41]} 32. Rd1 {[%clk 0:00:10]}  Nf4 {[%clk 0:01:18]} 33. Bxf4 {[%clk 0:00:09]}  Qxf4 {[%clk 0:01:17]} 34. Qxe6+ {[%clk 0:00:08]}  Qf7 {[%clk 0:01:18]} 35. Qe5 {[%clk 0:00:07]}  a4 {[%clk 0:01:13]} 36. Qxc5 {[%clk 0:00:06]}  a3 {[%clk 0:01:14]} 37. d7 {[%clk 0:00:04]}  a2 {[%clk 0:01:14]} 38. Qc4 {[%clk 0:00:01]} 0-1


[Site "https://www.chess.com"]

[Event "Titled Tuesday Blitz March 01 Late 2022"]
[White "Sarkar, Justin"]
[Black "Cabarkapa, Novak"]
[WhiteFideId "2010011"]
[BlackFideId "943746"]
[WhiteElo "2038"]
[BlackElo "2443"]
[Result "0-1"]
[Round "01"]
[TimeControl "180+1"]
[Date "2022.03.02"]
[WhiteClock "0:00:01"]
[BlackClock "0:00:04"]

1. d4 {[%clk 0:02:31]}  Nf6 {[%clk 0:02:58]} 2. c4 {[%clk 0:02:30]}  g6 {[%clk 0:02:58]} 3. Nc3 {[%clk 0:02:29]}  Bg7 {[%clk 0:02:56]} 4. e4 {[%clk 0:02:28]}  O-O {[%clk 0:02:57]} 5. Nge2 {[%clk 0:02:11]}  c6 {[%clk 0:02:55]} 6. e5 {[%clk 0:01:58]}  Ne8 {[%clk 0:02:54]} 7. f4 {[%clk 0:01:53]}  d6 {[%clk 0:02:54]} 8. Be3 {[%clk 0:01:47]}  f6 {[%clk 0:02:48]} 9. exf6 {[%clk 0:01:30]}  Nxf6 {[%clk 0:02:41]} 10. h3 {[%clk 0:01:27]}  Na6 {[%clk 0:02:27]} 11. g4 {[%clk 0:01:23]}  Qb6 {[%clk 0:02:22]} 12. Bg2 {[%clk 0:01:17]}  Bxg4 {[%clk 0:01:59]} 13. hxg4 {[%clk 0:01:12]}  Nxg4 {[%clk 0:02:00]} 14. Bg1 {[%clk 0:01:03]}  h5 {[%clk 0:01:47]} 15. Bf3 {[%clk 0:00:48]}  c5 {[%clk 0:01:15]} 16. Bxg4 {[%clk 0:00:40]}  hxg4 {[%clk 0:01:16]} 17. Qd2 {[%clk 0:00:37]}  Qc6 {[%clk 0:01:07]} 18. Nd5 {[%clk 0:00:33]}  Rae8 {[%clk 0:01:07]} 19. Ng3 {[%clk 0:00:22]}  e6 {[%clk 0:00:58]} 20. Nc3 {[%clk 0:00:21]}  cxd4 {[%clk 0:00:56]} 21. Bxd4 {[%clk 0:00:19]}  e5 {[%clk 0:00:54]} 22. fxe5 {[%clk 0:00:17]}  Bxe5 {[%clk 0:00:51]} 23. Bxe5 {[%clk 0:00:12]}  Rxe5+ {[%clk 0:00:52]} 24. Kd1 {[%clk 0:00:09]}  Qf3+ {[%clk 0:00:51]} 25. Nce2 {[%clk 0:00:05]}  Nc5 {[%clk 0:00:45]} 26. Kc2 {[%clk 0:00:05]}  Ne4 {[%clk 0:00:41]} 27. Qh6 {[%clk 0:00:02]}  Kf7 {[%clk 0:00:16]} 28. Rhf1 {[%clk 0:00:02]}  Nf2 {[%clk 0:00:16]} 29. Rxf2 {[%clk 0:00:02]}  Qxf2 {[%clk 0:00:16]} 30. Rf1 {[%clk 0:00:03]}  Rxe2+ {[%clk 0:00:17]} 31. Kc3 {[%clk 0:00:03]}  Rc2+ {[%clk 0:00:16]} 32. Kb3 {[%clk 0:00:02]}  Rxb2+ {[%clk 0:00:16]} 33. Ka3 {[%clk 0:00:02]}  Rxa2+ {[%clk 0:00:17]} 34. Kb3 {[%clk 0:00:03]}  Rb2+ {[%clk 0:00:18]} 35. Ka3 {[%clk 0:00:03]}  Ke7 {[%clk 0:00:12]} 36. Rxf2 {[%clk 0:00:03]}  Rbxf2 {[%clk 0:00:13]} 37. Qe3+ {[%clk 0:00:02]}  Kd7 {[%clk 0:00:13]} 38. Qd4 {[%clk 0:00:01]}  R8f3+ {[%clk 0:00:12]} 39. Kb4 {[%clk 0:00:01]}  Kc7 {[%clk 0:00:09]} 40. Qg7+ {[%clk 0:00:01]}  Kb6 {[%clk 0:00:06]} 41. Ne4 {[%clk 0:00:01]}  a5+ {[%clk 0:00:04]} 0-1


[Site "https://www.chess.com"]

[Event "Titled Tuesday Blitz March 01 Late 2022"]
[White "Suarez Uriel, Adrian"]
[Black "Riazantsev, Alexander"]
[WhiteFideId "22230874"]
[BlackFideId "4125029"]
[WhiteElo "2316"]
[BlackElo "2595"]
[Result "0-1"]
[Round "01"]
[TimeControl "180+1"]
[Date "2022.03.01"]
[WhiteClock "0:00:12"]
[BlackClock "0:00:37"]

1. e4 {[%clk 0:02:58]}  c6 {[%clk 0:03:00]} 2. Nf3 {[%clk 0:02:57]}  d5 {[%clk 0:03:01]} 3. Nc3 {[%clk 0:02:56]}  Bg4 {[%clk 0:02:59]} 4. d4 {[%clk 0:02:55]}  e6 {[%clk 0:02:58]} 5. Bd3 {[%clk 0:02:52]}  Nf6 {[%clk 0:02:53]} 6. e5 {[%clk 0:02:39]}  Nfd7 {[%clk 0:02:53]} 7. h3 {[%clk 0:02:38]}  Bh5 {[%clk 0:02:48]} 8. Ne2 {[%clk 0:02:35]}  Bxf3 {[%clk 0:02:45]} 9. gxf3 {[%clk 0:02:36]}  c5 {[%clk 0:02:45]} 10. c3 {[%clk 0:02:36]}  Nc6 {[%clk 0:02:44]} 11. Be3 {[%clk 0:02:34]}  Qb6 {[%clk 0:02:28]} 12. Kf1 {[%clk 0:02:09]}  Be7 {[%clk 0:02:14]} 13. h4 {[%clk 0:02:00]}  O-O-O {[%clk 0:02:09]} 14. h5 {[%clk 0:01:59]}  c4 {[%clk 0:02:05]} 15. Bc2 {[%clk 0:01:56]}  Qxb2 {[%clk 0:02:04]} 16. Rb1 {[%clk 0:01:48]}  Qa3 {[%clk 0:02:03]} 17. Ba4 {[%clk 0:01:46]}  Nb6 {[%clk 0:01:55]} 18. Rxb6 {[%clk 0:01:19]}  axb6 {[%clk 0:01:52]} 19. Qc2 {[%clk 0:01:19]}  b5 {[%clk 0:01:48]} 20. Bxb5 {[%clk 0:01:19]}  Qa5 {[%clk 0:01:44]} 21. a4 {[%clk 0:01:18]}  Qc7 {[%clk 0:01:38]} 22. Kg2 {[%clk 0:01:09]}  Na7 {[%clk 0:01:33]} 23. Rb1 {[%clk 0:01:01]}  Nxb5 {[%clk 0:01:33]} 24. axb5 {[%clk 0:01:00]}  Qa5 {[%clk 0:01:27]} 25. Qb2 {[%clk 0:00:37]}  Qa3 {[%clk 0:01:26]} 26. Qc2 {[%clk 0:00:37]}  Kd7 {[%clk 0:01:23]} 27. Bc1 {[%clk 0:00:37]}  Qa5 {[%clk 0:01:22]} 28. Bb2 {[%clk 0:00:37]}  Ra8 {[%clk 0:01:06]} 29. Bc1 {[%clk 0:00:33]}  Qa2 {[%clk 0:01:01]} 30. Rb2 {[%clk 0:00:32]}  Qa4 {[%clk 0:00:58]} 31. Qb1 {[%clk 0:00:22]}  g6 {[%clk 0:00:46]} 32. h6 {[%clk 0:00:21]}  Qa1 {[%clk 0:00:43]} 33. Qc2 {[%clk 0:00:20]}  Ra5 {[%clk 0:00:43]} 34. Ng1 {[%clk 0:00:17]}  Qa4 {[%clk 0:00:42]} 35. Qb1 {[%clk 0:00:17]}  Rha8 {[%clk 0:00:41]} 36. Nh3 {[%clk 0:00:17]}  Qd1 {[%clk 0:00:40]} 37. Bg5 {[%clk 0:00:16]}  Qxb1 {[%clk 0:00:38]} 38. Rxb1 {[%clk 0:00:17]}  Bf8 {[%clk 0:00:36]} 39. Be3 {[%clk 0:00:16]}  Ra1 {[%clk 0:00:36]} 40. Rb2 {[%clk 0:00:12]}  R8a2 {[%clk 0:00:36]} 41. Rxa2 {[%clk 0:00:12]}  Rxa2 {[%clk 0:00:37]} 42. Ng5 {[%clk 0:00:12]}  Bxh6 {[%clk 0:00:37]} 43. Nxf7 {[%clk 0:00:12]}  Bxe3 {[%clk 0:00:37]} 0-1


[Site "https://www.chess.com"]

[Event "Titled Tuesday Blitz March 01 Late 2022"]
[White "Tanenbaum, Zachary"]
[Black "Nikologorsky, Matfei"]
[WhiteFideId "2060850"]
[BlackFideId "24102474"]
[WhiteElo "2168"]
[BlackElo "2231"]
[Result "1-0"]
[Round "01"]
[TimeControl "180+1"]
[Date "2022.03.02"]
[WhiteClock "0:00:16"]
[BlackClock "0:00:13"]

1. e4 {[%clk 0:02:59]}  c5 {[%clk 0:02:58]} 2. Nf3 {[%clk 0:02:59]}  e6 {[%clk 0:02:59]} 3. d4 {[%clk 0:03:00]}  cxd4 {[%clk 0:02:59]} 4. Nxd4 {[%clk 0:03:00]}  a6 {[%clk 0:02:59]} 5. Bd3 {[%clk 0:03:00]}  Nf6 {[%clk 0:02:55]} 6. Nc3 {[%clk 0:03:00]}  Qc7 {[%clk 0:02:54]} 7. O-O {[%clk 0:03:00]}  Nc6 {[%clk 0:02:54]} 8. Be3 {[%clk 0:02:56]}  b5 {[%clk 0:02:45]} 9. Nxc6 {[%clk 0:02:36]}  dxc6 {[%clk 0:02:45]} 10. f4 {[%clk 0:02:36]}  e5 {[%clk 0:02:44]} 11. fxe5 {[%clk 0:02:23]}  Ng4 {[%clk 0:02:43]} 12. Bf4 {[%clk 0:02:21]}  Qb6+ {[%clk 0:02:32]} 13. Kh1 {[%clk 0:02:19]}  Nf2+ {[%clk 0:02:33]} 14. Rxf2 {[%clk 0:02:19]}  Qxf2 {[%clk 0:02:33]} 15. Bg3 {[%clk 0:02:10]}  Qe3 {[%clk 0:02:32]} 16. Qf1 {[%clk 0:01:38]}  Be6 {[%clk 0:02:27]} 17. Re1 {[%clk 0:01:35]}  Qc5 {[%clk 0:02:24]} 18. Ne2 {[%clk 0:01:35]}  Be7 {[%clk 0:02:16]} 19. Nf4 {[%clk 0:01:03]}  O-O {[%clk 0:02:15]} 20. Qf3 {[%clk 0:01:02]}  Rad8 {[%clk 0:02:12]} 21. h3 {[%clk 0:00:54]}  Qb4 {[%clk 0:01:53]} 22. b3 {[%clk 0:00:53]}  Qd4 {[%clk 0:01:30]} 23. Rf1 {[%clk 0:00:52]}  c5 {[%clk 0:01:22]} 24. Nh5 {[%clk 0:00:33]}  c4 {[%clk 0:01:15]} 25. Be2 {[%clk 0:00:33]}  cxb3 {[%clk 0:01:10]} 26. axb3 {[%clk 0:00:28]}  Qd2 {[%clk 0:01:09]} 27. Bf4 {[%clk 0:00:25]}  Qxc2 {[%clk 0:01:06]} 28. Qg3 {[%clk 0:00:23]}  g6 {[%clk 0:01:01]} 29. Rf2 {[%clk 0:00:21]}  Qxe4 {[%clk 0:00:59]} 30. Bg5 {[%clk 0:00:18]}  Qb4 {[%clk 0:00:42]} 31. Nf6+ {[%clk 0:00:17]}  Kg7 {[%clk 0:00:34]} 32. Rf4 {[%clk 0:00:17]}  Qc3 {[%clk 0:00:20]} 33. Qxc3 {[%clk 0:00:16]}  Rc8 {[%clk 0:00:17]} 34. Qg3 {[%clk 0:00:15]}  Rh8 {[%clk 0:00:15]} 35. Qh4 {[%clk 0:00:15]}  h5 {[%clk 0:00:14]} 36. Nxh5+ {[%clk 0:00:15]}  Rxh5 {[%clk 0:00:13]} 37. Bxh5 {[%clk 0:00:15]}  Bxg5 {[%clk 0:00:13]} 38. Qxg5 {[%clk 0:00:15]}  Rc1+ {[%clk 0:00:12]} 39. Kh2 {[%clk 0:00:16]}  Rc5 {[%clk 0:00:13]} 40. Bxg6 {[%clk 0:00:15]}  fxg6 {[%clk 0:00:13]} 41. Qe7+ {[%clk 0:00:15]}  Kh6 {[%clk 0:00:13]} 42. Rh4# {[%clk 0:00:16]} 1-0


[Site "https://www.chess.com"]

[Event "Titled Tuesday Blitz March 01 Late 2022"]
[White "Tomb, Maroun"]
[Black "Paravyan, David"]
[WhiteFideId "5300398"]
[BlackFideId "4194985"]
[WhiteElo "2528"]
[BlackElo "2569"]
[Result "1-0"]
[Round "01"]
[TimeControl "180+1"]
[Date "2022.03.01"]
[WhiteClock "0:00:06"]
[BlackClock "0:00:00"]

1. e4 {[%clk 0:03:00]}  e5 {[%clk 0:02:59]} 2. Nf3 {[%clk 0:03:00]}  Nf6 {[%clk 0:02:59]} 3. d4 {[%clk 0:03:00]}  Nxe4 {[%clk 0:02:58]} 4. Bd3 {[%clk 0:03:00]}  d5 {[%clk 0:02:58]} 5. Nxe5 {[%clk 0:03:01]}  Bd6 {[%clk 0:02:56]} 6. O-O {[%clk 0:02:59]}  O-O {[%clk 0:02:57]} 7. Nc3 {[%clk 0:02:59]}  Nxc3 {[%clk 0:02:54]} 8. bxc3 {[%clk 0:03:00]}  Nd7 {[%clk 0:02:53]} 9. Nxd7 {[%clk 0:03:00]}  Bxd7 {[%clk 0:02:32]} 10. Qh5 {[%clk 0:02:59]}  f5 {[%clk 0:02:32]} 11. Qf3 {[%clk 0:02:59]}  c6 {[%clk 0:02:30]} 12. Bf4 {[%clk 0:02:59]}  Qc7 {[%clk 0:02:23]} 13. Bxd6 {[%clk 0:02:57]}  Qxd6 {[%clk 0:02:24]} 14. Rfe1 {[%clk 0:02:57]}  Rae8 {[%clk 0:02:23]} 15. c4 {[%clk 0:02:48]}  dxc4 {[%clk 0:02:10]} 16. Bxc4+ {[%clk 0:02:47]}  Kh8 {[%clk 0:02:11]} 17. c3 {[%clk 0:02:43]}  g6 {[%clk 0:01:57]} 18. h4 {[%clk 0:02:42]}  Be6 {[%clk 0:01:36]} 19. Bxe6 {[%clk 0:02:31]}  Rxe6 {[%clk 0:01:35]} 20. Rxe6 {[%clk 0:02:32]}  Qxe6 {[%clk 0:01:36]} 21. Qe3 {[%clk 0:02:32]}  Re8 {[%clk 0:01:19]} 22. Re1 {[%clk 0:02:31]}  Qxe3 {[%clk 0:01:18]} 23. Rxe3 {[%clk 0:02:23]}  Rxe3 {[%clk 0:01:13]} 24. fxe3 {[%clk 0:02:23]}  Kg7 {[%clk 0:01:02]} 25. Kf2 {[%clk 0:02:22]}  Kf6 {[%clk 0:00:58]} 26. Kf3 {[%clk 0:02:21]}  g5 {[%clk 0:00:27]} 27. g3 {[%clk 0:02:11]}  b5 {[%clk 0:00:21]} 28. e4 {[%clk 0:02:07]}  fxe4+ {[%clk 0:00:20]} 29. Kxe4 {[%clk 0:02:07]}  gxh4 {[%clk 0:00:15]} 30. gxh4 {[%clk 0:02:07]}  Ke6 {[%clk 0:00:16]} 31. a3 {[%clk 0:01:44]}  a6 {[%clk 0:00:12]} 32. h5 {[%clk 0:01:22]}  a5 {[%clk 0:00:11]} 33. h6 {[%clk 0:00:51]}  a4 {[%clk 0:00:09]} 34. Kf4 {[%clk 0:00:49]}  Kf6 {[%clk 0:00:09]} 35. Ke4 {[%clk 0:00:47]}  Ke6 {[%clk 0:00:07]} 36. Kf4 {[%clk 0:00:47]}  Kd5 {[%clk 0:00:04]} 37. Kf5 {[%clk 0:00:45]}  Kc4 {[%clk 0:00:04]} 38. Kf6 {[%clk 0:00:43]}  Kxc3 {[%clk 0:00:04]} 39. Kg7 {[%clk 0:00:44]}  b4 {[%clk 0:00:04]} 40. Kxh7 {[%clk 0:00:45]}  b3 {[%clk 0:00:02]} 41. Kg7 {[%clk 0:00:33]}  b2 {[%clk 0:00:03]} 42. h7 {[%clk 0:00:34]}  b1=Q {[%clk 0:00:04]} 43. h8=Q {[%clk 0:00:35]}  Qe4 {[%clk 0:00:02]} 44. Qh3+ {[%clk 0:00:09]}  Qd3 {[%clk 0:00:02]} 45. Qe6 {[%clk 0:00:07]}  Qxd4+ {[%clk 0:00:02]} 46. Kg6 {[%clk 0:00:07]}  c5 {[%clk 0:00:00]} 47. Qe1+ {[%clk 0:00:06]} 1-0


[Site "https://www.chess.com"]